Cogmind - Beta 13 @@@ ROGUE MODE // 2024.06.11 @ 10:18:40 Player: lt_nd Result: Self-destructed Performance ------------- Evolutions (2) 1000 Regions Visited (3) 600 Robots Destroyed (80) 400 Value Destroyed (1669) 1669 Prototype IDs (3) 60 Alien Tech Used (0) 0 Bonus (11) 11 TOTAL SCORE: 3740 Bonus ------- High Alert Combat Kills 11 Cogmind --------- Core Integrity 467/550 Matter 264/300 Energy 99/100 System Corruption 0% Temperature Cool (0) Movement Core (50) Location -8/Materials Parts ------- > --- POWER (1) -------- (None) > --- PROPULSION (3) --- (None) > --- UTILITY (5) ------ (None) > --- WEAPON (2) ------- (None) > --- INVENTORY (5) ---- Cooled Ion Engine Cesium-ion Thruster Improved VTOL Module Faulty Improved VTOL Module Rocket Launcher Peak State ------------ > --- POWER ------------ Cooled Ion Engine > --- PROPULSION ------- Light Treads Light Treads Light Treads > --- UTILITY ---------- Medium Storage Unit Improved Sensor Array Signal Interpreter Hardened Light Armor Plating Hardened Light Armor Plating > --- WEAPON ----------- Heavy Assault Rifle Rocket Launcher > --- INVENTORY -------- Cooled Ion Engine Cooled Ion Engine Nuclear Core Cesium-ion Thruster Improved VTOL Module Improved VTOL Module Improved Sensor Array Signal Interpreter Rocket Launcher Katana [Rating: 21] Favorites ----------- Power Light Ion Engine Engine Light Ion Engine Propulsion Light Treads Treads Light Treads Leg Aluminum Leg Utility Hardened Light Armor Plating Device Sensor Array Storage Medium Storage Unit Processor Signal Interpreter Protection Hardened Light Armor Plating Weapon Heavy Assault Rifle Energy Gun Beam Rifle Ballistic Gun Heavy Assault Rifle Ballistic Cannon Light Cannon Launcher EMP Blaster Slashing Weapon Katana Build | -11 -10 -9 -8 ------- Run | Yrd Mat Mat Mat Slots Evolved 4 | . . 2 2 Power . | . . . . Propulsion 1 | . . 1 . Utility 3 | . . 1 2 Weapon . | . . . . Parts Attached 77 | 7 12 53 5 Power 9 | 1 1 7 . Engine 9 | 1 1 7 . Core . | . . . . Reactor . | . . . . Propulsion 23 | 2 1 20 . Treads 11 | . . 11 . Leg 12 | 2 1 9 . Wheel . | . . . . Hover . | . . . . Flight . | . . . . Utility 26 | 2 5 16 3 Device 3 | 1 . . 2 Storage 3 | 1 1 1 . Processor 2 | . 1 1 . Hackware . | . . . . Protection 18 | . 3 14 1 Artifact . | . . . . Weapon 19 | 2 5 10 2 Energy Gun 3 | 1 2 . . Energy Cannon . | . . . . Ballistic Gun 11 | 1 3 7 . Ballistic Cannon 2 | . . 2 . Launcher 2 | . . 1 1 Special Weapon . | . . . . Impact Weapon . | . . . . Slashing Weapon 1 | . . . 1 Piercing Weapon . | . . . . Special Melee Weapon . | . . . . Unidentified Prototypes 1 | . . 1 . Parts Lost 12 | . . 9 3 Power 2 | . . 1 1 Propulsion 2 | . . 2 . Utility 4 | . . 4 . Weapon 4 | . . 2 2 Highest Loss Streak 3 | . . 3 3 To Critical Strikes . | . . . . Average Slot Usage (%) 98 | . 99 98 99 Engine 11 | . 13 10 8 Treads 15 | . . 21 27 Leg 14 | . 28 10 . Device 1 | . . . 9 Storage 11 | . 14 11 9 Processor 1 | . . . 9 Protection 18 | . 12 20 18 Energy Gun 3 | . 10 . . Ballistic Gun 14 | . 17 14 8 Ballistic Cannon 3 | . . 6 . Launcher 1 | . . . 8 Naked Turns 2 | . . . 2 Heaviest Build 37 | 11 34 37 36 Greatest Support 60 | 20 20 60 60 Greatest Overweight (x) 9 | 2 1 9 . Average Overweight (x) . | . . . . Largest Inventory Capacity 15 | 8 15 15 10 Average Capacity 11 | 7 14 10 9 Most Carried 15 | 5 15 12 10 Average Carried 10 | 2 12 9 9 Final Capacity 15 | 8 15 10 5 Final Carried 13 | 5 13 10 5 Class Distribution -------------------- 52% | Scavenger-Mutant 47% | Mutant Dominant Class ---------------- Mutant | -10/Materials Scavenger-Mutant | -9/Materials Scavenger-Mutant | -8/Materials Resources | -11 -10 -9 -8 ----------- Run | Yrd Mat Mat Mat Matter Collected 2034 | 244 212 1442 136 Remotely . | . . . . Salvage Created 2689 | 141 564 1747 237 Parts 174 | 14 31 113 16 Haulers Intercepted 6 | . . 6 . Recyclers Shooed 14 | 1 9 3 1 Parts Field Recycled . | . . . . Retrieved Matter . | . . . . Parts Self-Destructed . | . . . . Prevented . | . . . . Kills | -11 -10 -9 -8 ------- Run | Yrd Mat Mat Mat Combat Hostiles Destroyed 52 | . 13 34 5 Guns 34 | . 13 19 2 Cannons 15 | . . 15 . AOE 3 | . . . 3 Classes Destroyed 9 | 2 4 3 . Worker 2 | . 1 1 . Tunneler 4 | 4 . . . Hauler 6 | . . 6 . Recycler 7 | 1 3 3 . Operator 2 | . . 2 . Watcher 7 | . 2 4 1 Swarmer 22 | . 9 10 3 Grunt 20 | . 4 14 2 Sentry 10 | . . 10 . Best Kill Streak 7 | 4 4 7 3 Combat Bots Only 6 | . 3 6 3 Max Kills in Single Turn 3 | 1 2 2 3 Gunslinging 1 | . 1 . . Exploded 3 | . . . 3 Melee . | . . . . Uniques/NPCs Destroyed . | . . . . Combat | -11 -10 -9 -8 -------- Run | Yrd Mat Mat Mat Hostile Shots Fired 302 | . 46 201 55 Missed 79 | . 11 54 14 Damage Taken 2798 | . 329 1798 671 Core 239 | . 33 123 83 Absorbed by Shields . | . . . . Redirected to Shielding 4 | . 4 . . Core Remaining (%) 85 | 100 86 69 . Volleys Fired 284 | 19 73 165 27 Largest 2 | 1 2 2 2 Hottest 112 | 40 112 58 56 Shots Fired 460 | 19 116 294 31 Gun 357 | 19 116 195 27 Cannon 93 | . . 93 . Launcher 10 | . . 6 4 Special . | . . . . Kinetic 365 | . 50 288 27 Thermal 85 | 19 66 . . Explosive 2 | . . . 2 Electromagnetic 8 | . . 6 2 Robot Hit Streak 12 | 9 10 12 8 Robot Miss Streak 5 | 4 4 5 3 Penetration Max . | . . . . Secondary Targets 3 | . 3 . . Max Gunslinging Chain 1 | . 1 . . Shots Hit Robots 296 | 14 70 190 22 Core Hits 119 | 6 32 69 12 Critical Kills 1 | . . 1 . Critical Parts Destroyed 1 | . . . 1 Critical Strikes 11 | . 4 4 3 Burn 4 | . 4 . . Destroy 2 | . . 1 1 Blast 3 | . . 3 . Sever 2 | . . . 2 Melee Attacks 6 | . . . 6 Impact . | . . . . Slashing 6 | . . . 6 Piercing . | . . . . Sneak Attacks . | . . . . Combat Hostiles . | . . . . Follow-up Attacks . | . . . . Damage Inflicted 4647 | 154 845 3149 499 Guns 3122 | 154 842 1901 225 Cannons 1039 | . . 1039 . Explosions 381 | . . 209 172 Melee 102 | . . . 102 Ramming 3 | . 3 . . Kinetic 3445 | . 280 2940 225 Thermal 716 | 154 562 . . Explosive 112 | . . . 112 Electromagnetic 269 | . . 209 60 Impact . | . . . . Slashing 102 | . . . 102 Piercing . | . . . . Highest Corruption . | . . . . Average Corruption . | . . . . Corruption Purged . | . . . . Corruption Blocked . | . . . . Overload Shots . | . . . . Overflow Damage 85 | . . 64 21 Projectiles 3 | . . 3 . Explosions 82 | . . 61 21 Melee . | . . . . Knockbacks 5 | . . 5 . Impact . | . . . . Kinetic 4 | . . 4 . Secondary 1 | . . 1 . Self-Inflicted Damage 150 | . . 62 88 Shots 8 | . . 4 4 Rammed . | . . . . Targets Rammed 1 | . 1 . . Kicked 1 | . 1 . . Crushed . | . . . . Highest Temperature 342 | . 342 135 20 Average Temperature 41 | . 80 27 6 Received Heat Transfer 720 | . 78 552 90 Effects 1 | . 1 . . Damage (minor) 1 | . 1 . . Siege Activations . | . . . . Robots Corrupted . | . . . . Combat Hostiles . | . . . . Parts Fried . | . . . . Impact Corruptions . | . . . . Robots Melted . | . . . . Combat Hostiles . | . . . . Parts Melted 5 | 1 4 . . Heat Transferred 2022 | 350 1672 . . Parts Sabotaged . | . . . . Parts Stolen . | . . . . Parts Stripped . | . . . . Power Chain Reactions 3 | . . 2 1 Alert | -11 -10 -9 -8 ------- Run | Yrd Mat Mat Mat Peak Influence 435 | 25 153 435 258 Initial 129 | . 16 35 129 Average 127 | 12 26 191 110 Maximum Alert Level 2 | . . 2 1 Low Security (%) 73 | 100 100 55 82 Level 1 25 | . . 42 17 Level 2 . | . . 1 . Level 3 . | . . . . Level 4 . | . . . . Level 5 . | . . . . High Security . | . . . . Max Security . | . . . . Squads Dispatched 7 | . 1 5 1 Investigation 3 | . 1 2 . Extermination . | . . . . Reinforcement 4 | . . 3 1 Assault . | . . . . Garrison . | . . . . Intercept . | . . . . Searches Triggered . | . . . . Construction Impeded 1 | . . . 1 Haulers Reinforced . | . . . . Active Scanning Responses . | . . . . Cargo Convoy Interrupts . | . . . . Stealth | -11 -10 -9 -8 --------- Run | Yrd Mat Mat Mat Distress Signals 3 | . . 3 . Communications Jammed . | . . . . Distress Signals . | . . . . Times Spotted 97 | . 26 62 9 Peak Tracking Total 6 | . 3 6 3 Tactical Retreats 5 | . 1 4 . Traps | -11 -10 -9 -8 ------- Run | Yrd Mat Mat Mat Traps Triggered 4 | . . 4 . Indirectly . | . . . . Trap Hack Attempts . | . . . . Triggered . | . . . . Disarmed . | . . . . Reprogrammed . | . . . . Reused . | . . . . Traps Extracted . | . . . . Installed . | . . . . Triggered . | . . . . Machines | -11 -10 -9 -8 ---------- Run | Yrd Mat Mat Mat Machines Disabled 3 | . . 2 1 Max in Single Turn 1 | . . 1 1 Machines Repaired . | . . . . Machines Dismantled . | . . . . Machines Sabotaged . | . . . . Overloaded Fab Kills . | . . . . Hacking | -11 -10 -9 -8 --------- Run | Yrd Mat Mat Mat Machines Accessed 13 | . 5 7 1 Terminals 12 | . 4 7 1 Fabricators . | . . . . Repair Stations . | . . . . Recycling Units 1 | . 1 . . Scanalyzers . | . . . . Garrison Access . | . . . . Total Hacks 42 | . 14 26 2 Successful 27 | . 8 18 1 Failed 15 | . 6 8 1 Catastrophic 2 | . . 2 . Database Lockouts . | . . . . Manual 7 | . . 7 . Terminals 40 | . 12 26 2 Fabricators . | . . . . Repair Stations . | . . . . Recycling Units 2 | . 2 . . Scanalyzers . | . . . . Garrison Access . | . . . . Terminal Hacks 25 | . 6 18 1 Record 11 | . 3 8 . Prototype ID Bank 1 | . . 1 . Alert Level 3 | . . 3 . Unreport Threat 2 | . . 2 . Dispatch Records 1 | . . . 1 Maintenance Status 2 | . . 2 . Transport Status 1 | . 1 . . Hauler Manifests 2 | . 1 1 . Zone Layout 2 | . 1 1 . Fabricator Hacks . | . . . . Repair Station Hacks . | . . . . Recycling Unit Hacks 2 | . 2 . . Report Inventory 1 | . 1 . . Retrieve Components 1 | . 1 . . Scanalyzer . | . . . . Garrison Access Hacks . | . . . . Unauthorized Hacks . | . . . . Terminals . | . . . . Fabricators . | . . . . Repair Stations . | . . . . Recycling Units . | . . . . Scanalyzers . | . . . . Garrison Access . | . . . . Data Cores Recovered . | . . . . Used . | . . . . Hacking Detections 12 | . 5 6 1 Full Trace Events 4 | . 2 2 . Feedback Events . | . . . . Feedback Blocked . | . . . . Robot Schematics Acquired . | . . . . Robots Built . | . . . . Authchips . | . . . . Time . | . . . . Total Robot Build Rating . | . . . . Part Schematics Acquired . | . . . . Parts Built . | . . . . Authchips . | . . . . Time . | . . . . Total Part Build Rating . | . . . . Parts Repaired . | . . . . Time . | . . . . Parts Recycled . | . . . . Recycled Matter . | . . . . Retrieved Matter . | . . . . Retrieved Components 1 | . 1 . . Parts Scanalyzed . | . . . . Part Schematics Acquired . | . . . . Parts Damaged . | . . . . Bothacking | -11 -10 -9 -8 ------------ Run | Yrd Mat Mat Mat Used RIF Installer . | . . . . Robots Hacked . | . . . . Non-combat . | . . . . Combat . | . . . . Robot Hacks Applied . | . . . . Relay Couplers Released . | . . . . Fabnet Peak Effective % . | . . . . Robots Rewired . | . . . . Allies Hacked . | . . . . Hacks Repelled . | . . . . Allies | -11 -10 -9 -8 -------- Run | Yrd Mat Mat Mat Total Allies . | . . . . Largest Group . | . . . . Highest-Rated Group . | . . . . Highest-Rated Ally . | . . . . Total Orders . | . . . . Ally Attacks . | . . . . Total Damage . | . . . . Kills . | . . . . Allies Corrupted . | . . . . Allies Melted . | . . . . Intel | -11 -10 -9 -8 ------- Run | Yrd Mat Mat Mat Robot Analysis Total . | . . . . Derelict Logs Recovered . | . . . . Drone Launches . | . . . . Drone Recoveries . | . . . . Exploration | -11 -10 -9 -8 ------------- Run | Yrd Mat Mat Mat Turns Passed 7218 | 154 2144 3962 958 Spaces Moved 3135 | 87 937 1712 399 Core 12 | 6 . 1 5 Treads 1549 | . . 1155 394 Legs 1574 | 81 937 556 . Wheels . | . . . . Hover . | . . . . Flight . | . . . . Fastest Speed 50 | 50 120 120 50 Average Speed 168 | 116 188 161 158 Slowest Speed 500 | 150 190 500 160 Overloaded Moves . | . . . . Propulsion Burnouts . | . . . . Robots Hopped . | . . . . Cave-ins Triggered . | . . . . Exploration Rate (%) 50 | 5 90 88 19 Regions Visited 3 Branch Regions . Pre-discovered Areas . | . . . . Known Exits Taken 2 | . 1 1 . Unknown Exits Taken 1 | 1 . . . Scrap Searched . | . . . . Spaces Dug . | . . . . Terrain Destroyed 34 | . . 10 24 Melee . | . . . . Projectile . | . . . . AOE 34 | . . 10 24 Terrain Rammed . | . . . . Walls Destroyed . | . . . . Machines Disabled . | . . . . Actions | -11 -10 -9 -8 --------- Run | Yrd Mat Mat Mat Total 4630 | 117 1214 2612 687 Wait 1001 | . 156 611 234 Move 3132 | 86 936 1711 399 Hop . | . . . . Pick Up 53 | 5 17 24 7 Fast Attach 51 | 7 7 34 3 Attach 16 | . 1 13 2 Detach 13 | . 4 9 . Swap 10 | . 4 6 . Drop 63 | . 15 39 9 Fire 284 | 19 73 165 27 Melee 6 | . . . 6 Ram . | . . . . Kick 1 | . 1 . . Crush . | . . . . Escape Stasis . | . . . . Rewire . | . . . . Trap . | . . . . Miscellaneous . | . . . . Route ------- -11/Scrapyard -10/Materials (discovered 4 exits: *Mat x3 / *Min) -9/Materials (discovered 4 exits: *Mat x3 / [*Min]) -8/Materials History --------- Turn | Location | Event 7 | -11/Scrapyard | Discovered new exit (range 16) 155 | -11/Scrapyard | Entered Materials 304 | -10/Materials | Build established: Mutant 718 | -10/Materials | Discovered new exit (range 15) 965 | -10/Materials | Discovered new exit (range 16) 995 | -10/Materials | Identified exit to Materials 1079 | -10/Materials | Identified exit to Mines 1270 | -10/Materials | Discovered exit to Materials (range 16) 2271 | -10/Materials | Discovered exit to Materials (range 16) 2299 | -10/Materials | Entered another Materials area 2299 | -9/Materials | Evolved 2 slots: Propulsion x1, Utility x1 2767 | -9/Materials | Build established: Scavenger-Mutant 3100 | -9/Materials | Discovered new exit (range 8) 3533 | -9/Materials | Discovered new exit (range 5) 3621 | -9/Materials | Lost 3 parts (2n1u) 4227 | -9/Materials | Build established: Mutant 4867 | -9/Materials | Discovered new exit (range 16) 5146 | -9/Materials | Build established: Scavenger-Mutant 5727 | -9/Materials | Discovered new exit (range 11) 6260 | -9/Materials | Identified exit to Materials 6261 | -9/Materials | Entered another Materials area 6261 | -8/Materials | Evolved 2 slots: Utility x2 7217 | -8/Materials | Released all parts (9) 7219 | -8/Materials | Self-destructed Last Messages --------------- 07193_ Dropped Cld. Ion Engine. 07194_ Dropped Katana. 07194_ Rocket Launcher destroyed. 07196_ Acquired Katana. 07197_ Penetrated by Slug. 07203_ H-55 Commando Carbon-fiber Leg severed. 07204_ Penetrated by Slug. 07209_ H-55 Commando Gauss Rifle severed. 07210_ U-05 Engineer lays Concrete. 07215_ U-05 Engineer builds a Wall. 07217_ Released Lgt. Treads. 07217_ Released Hrd. Light Armor Plating. 07217_ Released Lgt. Treads. 07217_ Released Med. Storage Unit. 07217_ Released Lgt. Treads. 07217_ Released Signal Interpreter. 07217_ Released Hrd. Light Armor Plating. 07217_ Released Imp. Sensor Array. 07217_ Released Katana. 07217_ R-06 Scavenger collects Lgt. Treads. Map ----- +----------------------------------------------------+ | | | | | | | | | | | | | | | | | | | | | | | | | | | ?????????????????????????????????????????????????? | | ???????????????????????????????????# ?? ?????????? | | ?????????????????????????#######???# ?"??#????? | | ?????????????????????????# #???# "R" #????? | | ?????????????????????????# #???# " " #????? | | ?????????????????????????# #???# #????? | | ?????????????????????????# ##### """ #????? | | ?????????????????????????# # # """ #????? | | ??????????????############ * # # """ #????? | | ??????????????# T ## # #?? ??????? | | ??????????????# """ ### * / #####+######### | | ??????????????# """ # != # | | ??????????????# """ /@ !!==r # | | ??????????????# """ # !!hu uo # | | ??????????????# ### *# #+##### #####+## | | ??????????????# #?### #! ] | | ??????????????# #???# | | ??????????????###########???# # """" | | ????????????????????????????# # """"" | | ????????????????????????????# # """" | | ????????????????????????????# # # """"" | | ????????????????????????????# # # """" | | ????????????????????????????# # # | | ????????????????????????????########### ######## | | ??????????????????????????????????????# #??????? | | ??????????????????????????????????????# #??????? | | ??????????????????????????????????????+ #??????? | | ??????????????????????????????????????# #??????? | | ??????????????????????????????????????# #??????? | | ??????????????????????????????????????? #??????? | | ??????????????????????????????????????? ???????? | | ?????????????????????????????????????????????????? | | ?????????????????????????????????????????????????? | | ?????????????????????????????????????????????????? | | ?????????????????????????????????????????????????? | | ?????????????????????????????????????????????????? | | ?????????????????????????????????????????????????? | +----------------------------------------------------+ Best States ------------- Heat Dissipation 31 Energy Generation 14 Energy Capacity 280 Matter Stores 300 Matter Capacity 300 Sight Range 16 Robot Scan Range 15 Terrain Scan Density 10 Armor Coverage 450 Core Shielding 20 Evasion (%) 55 Recoil Reduction 3 Item Schematics ----------------- None Robot Schematics ------------------ None Fabricated ------------ Nothing Alien Tech Used ----------------- None Achievements -------------- Librarian Shopping List Challenges ------------ None Game ------ Seed SingularityWeaponsDevice Manual? 0 Play Time 01:14:19 Cumulative 2.8 hours Start 2024.06.10 @ 16:27:28 End 2024.06.11 @ 10:18:40 Sessions 7 Manual Loads 0 Difficulty Rogue Special Mode None Game No. 4 Rogue 4 Adventurer 0 Explorer 0 Win Type - Total 0 Types 0/0/0/0/0/0/0/0/0 Lore% 1 Gallery% 5 Achievement% 5 Wizard Run 0 Options --------- Layout 1 ASCII 0 Keyboard 1 Movement Numpad Keybinds 0 Fullscreen 1 Font 24/Smallcaps Map View 50x35 Zoom Use 0% Tactical HUD 1 Map Filters NONE Filters NONE Steam 1 RUN: c2be6896-e587-4015-93d5-dd2a40cc508d